Cogmind - Beta 10 @@@ ROGUE MODE // 2020.09.19 @ 19:50:28 Player: 277 Result: Self-destructed Performance ------------- Evolutions (0) 0 Regions Visited (4) 800 Robots Destroyed (20) 100 Value Destroyed (429) 429 Prototype IDs (23) 460 Alien Tech Used (0) 0 Bonus (300) 300 TOTAL SCORE: 2089 Bonus ------- Aligned with FarCom 300 Cogmind --------- Core Integrity 126/250 Matter 94/300 Energy 100/100 System Corruption 6% Temperature Cool (25) Movement Hovering (90) Location -9/Mines Parts ------- > --- POWER (1) -------- (None) > --- PROPULSION (2) --- Aluminum Leg Combat Airjet > --- UTILITY (2) ------ Improved Terrain Scanner Terrain Scan Processor > --- WEAPON (2) ------- Latent Energy Streamer > --- INVENTORY (4) ---- Aluminum Leg Experimental Sensor Array Particle Gun Mini Grenade Launcher Peak State ------------ > --- POWER ------------ Ion Engine > --- PROPULSION ------- Aluminum Leg Combat Airjet > --- UTILITY ---------- Improved Terrain Scanner Terrain Scan Processor > --- WEAPON ----------- Latent Energy Streamer Rocket Launcher > --- INVENTORY -------- Aluminum Leg Experimental Sensor Array Particle Gun Mini Grenade Launcher [Rating: 24] Favorites ----------- Power Ion Engine Engine Ion Engine Propulsion Aluminum Leg Leg Aluminum Leg Hover Unit Combat Airjet Utility Terrain Scan Processor Device Improved Terrain Scanner Processor Terrain Scan Processor Weapon Mini Grenade Launcher Energy Gun Particle Gun Energy Cannon Latent Energy Streamer Launcher Mini Grenade Launcher Build | -11 -10 -10 -10 -9 ------- Run | Scr Mat Min Exi Min Slots Evolved . | . . . . . Power . | . . . . . Propulsion . | . . . . . Utility . | . . . . . Weapon . | . . . . . Parts Attached 19 | 6 3 2 7 1 Power 1 | 1 . . . . Engine 1 | 1 . . . . Core . | . . . . . Reactor . | . . . . . Propulsion 4 | 2 1 . 1 . Treads . | . . . . . Leg 3 | 2 1 . . . Wheel . | . . . . . Hover 1 | . . . 1 . Flight . | . . . . . Utility 4 | 1 1 . 2 . Device 2 | 1 . . 1 . Storage . | . . . . . Processor 2 | . 1 . 1 . Hackware . | . . . . . Protection . | . . . . . Artifact . | . . . . . Weapon 10 | 2 1 2 4 1 Energy Gun 5 | 2 1 1 1 . Energy Cannon 2 | . . . 2 . Ballistic Gun . | . . . . . Ballistic Cannon . | . . . . . Launcher 3 | . . 1 1 1 Special Weapon . | . . . . . Impact Weapon . | . . . . . Slashing Weapon . | . . . . . Piercing Weapon . | . . . . . Special Melee Weapon . | . . . . . Unidentified Prototypes 3 | . . . 3 . Parts Lost 3 | . . 1 . 2 Power 1 | . . . . 1 Propulsion . | . . . . . Utility . | . . . . . Weapon 2 | . . 1 . 1 Highest Loss Streak 2 | . . 1 . 2 Average Slot Usage (%) 99 | . 99 98 98 99 Engine 13 | . 14 14 14 13 Leg 21 | . 28 28 21 14 Hover 6 | . . . 7 14 Device 13 | . 14 14 13 14 Processor 13 | . 13 14 14 14 Energy Gun 9 | . 28 16 6 . Energy Cannon 7 | . . . 7 14 Launcher 11 | . . 10 13 14 Naked Turns . | . . . . . Heaviest Build 20 | 9 11 11 17 20 Greatest Support 22 | 20 20 20 22 22 Greatest Overweight (x) . | . . . . . Average Overweight (x) . | . . . . . Largest Inventory Capacity 4 | 4 4 4 4 4 Average Capacity 4 | 4 4 4 4 4 Most Carried 4 | . 4 4 4 4 Average Carried 3 | . 2 3 3 3 Final Capacity 4 | 4 4 4 4 4 Final Carried 4 | . 4 4 3 4 Class Distribution -------------------- 52% | Mutant 19% | Scavenger-Mutant 14% | Scout 14% | Scavenger-Scout Dominant Class ---------------- Mutant | -10/Materials Mutant | -10/Mines Scavenger-Mutant | -10/Exiles Scout | -9/Mines Resources | -11 -10 -10 -10 -9 ----------- Run | Scr Mat Min Exi Min Matter Collected 477 | 215 75 50 80 57 Remotely . | . . . . . Salvage Created 417 | 145 41 45 . 186 Parts 24 | 8 2 . . 14 Haulers Intercepted . | . . . . . Recyclers Shooed . | . . . . . Parts Field Recycled . | . . . . . Retrieved Matter . | . . . . . Parts Self-Destructed . | . . . . . Prevented . | . . . . . Kills | -11 -10 -10 -10 -9 ------- Run | Scr Mat Min Exi Min Combat Hostiles Destroyed 12 | . 1 2 . 9 Guns 1 | . 1 . . . AOE 11 | . . 2 . 9 Classes Destroyed 8 | 2 1 . . 5 Worker 1 | . . . . 1 Builder 1 | . . . . 1 Tunneler 4 | 3 . . . 1 Recycler 2 | 1 . . . 1 Swarmer 3 | . . . . 3 Grunt 7 | . 1 2 . 4 Duelist 1 | . . . . 1 Sentry 1 | . . . . 1 Best Kill Streak 4 | 4 1 2 . 4 Combat Bots Only 3 | . 1 2 . 3 Max Kills in Single Turn 3 | 1 1 1 . 3 Gunslinging . | . . . . . Exploded 2 | . . 1 . 2 Melee . | . . . . . Uniques/NPCs Destroyed . | . . . . . Combat | -11 -10 -10 -10 -9 -------- Run | Scr Mat Min Exi Min Damage Taken 564 | . 77 141 . 346 Core 124 | . 42 26 . 56 Absorbed by Shields . | . . . . . Core Remaining (%) 100 | 100 . . . . Volleys Fired 56 | 14 10 4 . 28 Largest 2 | 2 2 1 . 2 Hottest 105 | 80 105 30 . 93 Shots Fired 78 | 26 19 4 . 29 Gun 45 | 26 19 . . . Cannon 4 | . . . . 4 Launcher 29 | . . 4 . 25 Special . | . . . . . Kinetic . | . . . . . Thermal 21 | 12 9 . . . Explosive 29 | . . 4 . 25 Electromagnetic 28 | 14 10 . . 4 Robot Hit Streak 5 | 2 5 1 . 5 Robot Miss Streak 5 | 5 3 1 . 3 Penetration Max . | . . . . . Secondary Targets . | . . . . . Shots Hit Robots 33 | 11 9 2 . 11 Core Hits 30 | 5 2 4 . 19 Critical Hits . | . . . . . Critical Kills . | . . . . . Critical Parts Destroyed . | . . . . . Melee Attacks . | . . . . . Impact . | . . . . . Slashing . | . . . . . Piercing . | . . . . . Sneak Attacks . | . . . . . Combat Hostiles . | . . . . . Follow-up Attacks . | . . . . . Damage Inflicted 1903 | 130 161 251 . 1361 Guns 291 | 130 161 . . . Cannons 8 | . . . . 8 Explosions 1604 | . . 251 . 1353 Melee . | . . . . . Ramming . | . . . . . Kinetic . | . . . . . Thermal 123 | 44 79 . . . Explosive 1538 | . . 251 . 1287 Electromagnetic 242 | 86 82 . . 74 Impact . | . . . . . Slashing . | . . . . . Piercing . | . . . . . Highest Corruption 6 | . . . . 6 Average Corruption 2 | . . . . 2 Corruption Purged . | . . . . . Effects 13 | . . . . 13 Message Errors 4 | . . . . 4 Heat Flow Errors 1 | . . . . 1 Energy Discharges 1 | . . . . 1 Data Loss (minor) 2 | . . . . 2 Data Loss (major) 1 | . . . . 1 Targeting Errors 4 | . . . . 4 Overload Shots . | . . . . . Overflow Damage 57 | . . 10 . 47 Projectiles . | . . . . . Explosions 57 | . . 10 . 47 Melee . | . . . . . Knockbacks . | . . . . . Impact . | . . . . . Kinetic . | . . . . . Secondary . | . . . . . Self-Inflicted Damage 67 | . . . . 67 Shots 2 | . . . . 2 Rammed . | . . . . . Targets Rammed . | . . . . . Kicked . | . . . . . Crushed . | . . . . . Highest Temperature 357 | 198 357 4 . 214 Average Temperature 107 | 98 163 3 . 60 Received Heat Transfer 171 | . 42 39 . 90 Siege Activations . | . . . . . Robots Corrupted . | . . . . . Combat Hostiles . | . . . . . Parts Fried . | . . . . . Impact Corruptions . | . . . . . Robots Melted . | . . . . . Combat Hostiles . | . . . . . Parts Melted . | . . . . . Heat Transferred 285 | 100 185 . . . Parts Sabotaged . | . . . . . Parts Stolen . | . . . . . Parts Stripped . | . . . . . Power Chain Reactions 1 | . . . . 1 Missiles Intercepted . | . . . . . Latent Energy Used 314 | . . . . 314 LE Corruption 6 | . . . . 6 Alert | -11 -10 -10 -10 -9 ------- Run | Scr Mat Min Exi Min Peak Influence 240 | 20 43 56 . 240 Initial 16 | . 13 16 . . Average 51 | 7 22 27 . 89 Maximum Alert Level 1 | . . . . 1 Low Security (%) 95 | 100 100 100 . 89 Level 1 4 | . . . . 10 Level 2 . | . . . . . Level 3 . | . . . . . Level 4 . | . . . . . Level 5 . | . . . . . High Security . | . . . . . Max Security . | . . . . . Squads Dispatched 2 | . 1 . . 1 Investigation . | . . . . . Extermination . | . . . . . Reinforcement 2 | . 1 . . 1 Assault . | . . . . . Garrison . | . . . . . Intercept . | . . . . . Construction Impeded 1 | . . . . 1 Haulers Reinforced . | . . . . . Stealth | -11 -10 -10 -10 -9 --------- Run | Scr Mat Min Exi Min Distress Signals 1 | . . . . 1 Communications Jammed . | . . . . . Distress Signals . | . . . . . Times Spotted 25 | . 4 12 . 9 Peak Tracking Total 9 | . 1 9 . 3 Tactical Retreats 2 | . . 1 . 1 Traps | -11 -10 -10 -10 -9 ------- Run | Scr Mat Min Exi Min Traps Triggered . | . . . . . Indirectly . | . . . . . Trap Hack Attempts . | . . . . . Triggered . | . . . . . Disarmed . | . . . . . Reprogrammed . | . . . . . Reused . | . . . . . Traps Extracted . | . . . . . Installed . | . . . . . Triggered . | . . . . . Machines | -11 -10 -10 -10 -9 ---------- Run | Scr Mat Min Exi Min Machines Disabled 3 | . . . . 3 Max in Single Turn 1 | . . . . 1 Machines Sabotaged . | . . . . . Garrisons Compromised . | . . . . . Overloaded Fab Kills . | . . . . . Fab Network Shutdowns . | . . . . . Hacking | -11 -10 -10 -10 -9 --------- Run | Scr Mat Min Exi Min Machines Accessed 4 | . . . 4 . Terminals . | . . . . . Fabricators . | . . . . . Repair Stations . | . . . . . Recycling Units . | . . . . . Scanalyzers . | . . . . . Garrison Access . | . . . . . Total Hacks 27 | . . . 27 . Successful 27 | . . . 27 . Failed . | . . . . . Catastrophic . | . . . . . Database Lockouts . | . . . . . Manual 1 | . . . 1 . Terminals . | . . . . . Fabricators . | . . . . . Repair Stations . | . . . . . Recycling Units . | . . . . . Scanalyzers . | . . . . . Garrison Access . | . . . . . Terminal Hacks 27 | . . . 27 . Record 26 | . . . 26 . EX-Prototype ID Bank 1 | . . . 1 . Fabricator Hacks . | . . . . . Repair Station Hacks . | . . . . . Recycling Unit Hacks . | . . . . . Scanalyzer . | . . . . . Garrison Access Hacks . | . . . . . Unauthorized Hacks . | . . . . . Terminals . | . . . . . Fabricators . | . . . . . Repair Stations . | . . . . . Recycling Units . | . . . . . Scanalyzers . | . . . . . Garrison Access . | . . . . . Data Cores Recovered . | . . . . . Used . | . . . . . Hacking Detections . | . . . . . Full Trace Events . | . . . . . Feedback Events . | . . . . . Feedback Blocked . | . . . . . Robot Schematics Acquired . | . . . . . Robots Built . | . . . . . Matter . | . . . . . Time . | . . . . . Total Robot Build Rating . | . . . . . Part Schematics Acquired . | . . . . . Parts Built . | . . . . . Matter . | . . . . . Time . | . . . . . Total Part Build Rating . | . . . . . Parts Repaired . | . . . . . Time . | . . . . . Parts Recycled . | . . . . . Recycled Matter . | . . . . . Retrieved Matter . | . . . . . Retrieved Components . | . . . . . Parts Scanalyzed . | . . . . . Part Schematics Acquired . | . . . . . Parts Damaged . | . . . . . Bothacking | -11 -10 -10 -10 -9 ------------ Run | Scr Mat Min Exi Min Used RIF Installer . | . . . . . Robots Hacked . | . . . . . Non-combat . | . . . . . Combat . | . . . . . Robot Hacks Applied . | . . . . . Relay Couplers Released . | . . . . . Robots Rewired . | . . . . . Allies Hacked . | . . . . . Hacks Repelled . | . . . . . Allies | -11 -10 -10 -10 -9 -------- Run | Scr Mat Min Exi Min Total Allies . | . . . . . Largest Group . | . . . . . Highest-Rated Group . | . . . . . Highest-Rated Ally . | . . . . . Total Orders . | . . . . . Ally Attacks . | . . . . . Total Damage . | . . . . . Kills . | . . . . . Allies Corrupted . | . . . . . Allies Melted . | . . . . . Intel | -11 -10 -10 -10 -9 ------- Run | Scr Mat Min Exi Min Robot Analysis Total . | . . . . . Derelict Logs Recovered 1 | . . 1 . . Drone Launches . | . . . . . Drone Recoveries . | . . . . . Exploration | -11 -10 -10 -10 -9 ------------- Run | Scr Mat Min Exi Min Turns Passed 1454 | 96 143 289 516 410 Spaces Moved 1188 | 39 62 220 491 376 Core 2 | 2 . . . . Treads . | . . . . . Legs 521 | 37 62 220 202 . Wheels . | . . . . . Hover 665 | . . . 289 376 Flight . | . . . . . Fastest Speed 50 | 50 120 120 90 90 Average Speed 103 | 116 120 120 102 90 Slowest Speed 120 | 120 120 120 120 90 Overloaded Moves . | . . . . . Propulsion Burnouts . | . . . . . Robots Hopped . | . . . . . Cave-ins Triggered . | . . . . . Exploration Rate (%) 47 | 5 9 43 89 93 Regions Visited 4 Branch Regions 3 Pre-discovered Areas . | . . . . . Known Exits Taken . | . . . . . Unknown Exits Taken 4 | 1 1 1 1 . Scrap Searched 1 | . . . . 1 Spaces Dug 36 | . . . . 36 Terrain Destroyed 229 | . . 32 . 197 Melee . | . . . . . Projectile . | . . . . . AOE 229 | . . 32 . 197 Terrain Rammed . | . . . . . Walls Destroyed . | . . . . . Machines Disabled . | . . . . . Actions | -11 -10 -10 -10 -9 --------- Run | Scr Mat Min Exi Min Total 1333 | 60 110 241 504 418 Wait 59 | 2 32 12 . 13 Move 1184 | 38 61 219 490 376 Hop . | . . . . . Pick Up 5 | . 3 2 . . Fast Attach 14 | 6 2 1 5 . Attach 1 | . . . 1 . Detach 1 | . . . 1 . Swap 4 | . 1 1 1 1 Drop 9 | . 1 2 6 . Fire 56 | 14 10 4 . 28 Melee . | . . . . . Ram . | . . . . . Kick . | . . . . . Crush . | . . . . . Escape Stasis . | . . . . . Rewire . | . . . . . Trap . | . . . . . Miscellaneous . | . . . . . Route ------- -11/Scrapyard -10/Materials -10/Mines (discovered 2 exits: [*Mat] / *Exi) -10/Exiles -9/Mines (discovered 2 exits: [*Mat x2]) History --------- Turn | Location | Event 12 | -11/Scrapyard | Discovered new exit (range 15) 97 | -11/Scrapyard | Entered Materials 117 | -10/Materials | Discovered new exit (range 16) 240 | -10/Materials | Entered Mines 263 | -10/Mines | Learned Materials stockpile data 271 | -10/Mines | Assembled infested the area 292 | -10/Mines | Met a Derelict bent on vengeance 303 | -10/Mines | Build established: Mutant 352 | -10/Mines | Discovered new exit (range 9) 447 | -10/Mines | Found a damaged Exp. Sensor Array with a note attached 452 | -10/Mines | Found Prototype Device 498 | -10/Mines | Discovered new exit (range 15) 523 | -10/Mines | Deemed a non-threat by the Exiles lab entrance 529 | -10/Mines | Entered Exiles 558 | -10/Exiles | Met 8R-AWN 579 | -10/Exiles | Met EX-HEX 617 | -10/Exiles | Met EX-BIN 726 | -10/Exiles | Aligned with FarCom system 727 | -10/Exiles | Given EX-Vault access code 755 | -10/Exiles | Opened EX-Vault 763 | -10/Exiles | Found Prototype Processor 763 | -10/Exiles | Identified Modified TNC 768 | -10/Exiles | Found Prototype Energy Cannon 768 | -10/Exiles | Identified Latent Energy Streamer 774 | -10/Exiles | Found Prototype Energy Gun 774 | -10/Exiles | Identified AWS/Thermal 804 | -10/Exiles | Warned to stay clear of 0b10 Research branches 833 | -10/Exiles | Met EX-DEC 892 | -10/Exiles | Visited The Gauntlet 1036 | -10/Exiles | Discovered new exit (range 12) 1045 | -10/Exiles | Left Exiles lab with Latent Energy Streamer 1045 | -10/Exiles | Entered Mines 1129 | -9/Mines | Found a hidden stash of uninstalled traps 1213 | -9/Mines | Received a Rocket Launcher from a helpful Derelict 1424 | -9/Mines | Discovered new exit (range 6) 1425 | -9/Mines | Discovered new exit (range 13) 1455 | -9/Mines | Self-destructed Last Messages --------------- 01396_ Pulverizer disabled. 01396_ G-34 Mercenary destroyed. 01398_ T-07 Excavator destroyed. 01398_ Destroyed Aluminum Leg. 01400_ L-31 Rogue destroyed. 01400_ Destroyed Sml. Laser. 01410_ G-34 Mercenary destroyed. 01410_ Chain reaction triggered in Ion Engine. 01419_ System corrupted: Component data lost. 01423_ R-06 Scavenger collects Aluminum Leg. 01424_ EXIT=FOUND 01439_ System corrupted: Latent Energy Streamer targeting data glitched. 01439_ Machine disabled. 01440_ System corrupted: Substantial component data lost. 01442_ Machine disabled. 01447_ The unstable cave ceiling collapses. 01449_ Ion Engine destroyed. 01450_ Y-45 Defender destroyed. 01452_ The unstable cave ceiling collapses. 01455_ Rocket Launcher destroyed. Map ----- +----------------------------------------------------+ | ??????##???#?????#?## ##?#?###?####?### | | ????#???#???##??#???####?#??????#??#### | | ????????????????##??????##?####?##?## # | | ???????????????????????#?????#####?## | | ????????#????#???????????##?## #### # | | ?????#?????#????????#???#?#### ## # | | ??????#?#?????#?#????????#???## ## | | ??????????????#??????#??##?#### | | ???????????#??#????????#??#???# | | ???????????#?????????#??????#?# | | ??????????#??????#???????#???## | | ?????????????##?#??#??#??##???## ## | | ?????????#???? # #?#????###?#?####?## | | ???????#??#??# ####?##?#?#?##?#?#?## | | ????????????## #####??#??######## | | ????????##??? !! # #??????## | | ??#?????????# #???#???# ##### | | ???#?????###? ###?##??# ##?## | | ??#????##???? ######## #### | | ??????????#?## #?# | | ????????????? Y #?# ######## | | ???????#?#?#? #?## ######### | | #????????##??# #?## ### | | ?????#???????# #### < #?## | | ???##???##?#?# #### | | ??#?##????#??# @ #### #??## | | ??##???##????# < #??# # | | #????##????### #### """ | | ?????##?################## "" | | ?#??#?#??#?#???###????#?## "" % | | #??##???#??#???########??# % # | | #??####???????#?#?#???#?######### # # | | ##?#???######?#####?#?#??#?###### | | ?##????#???#?#?#?##??####????#??##### ## | | ?#?#?#?#??####?###?###???????######## ## | | ???#?#?#?##?#?##?#???#?###?###### ## | | ?????#####?################# """ # | | ??#### #### # ## # #??# """ # | | ???## ## # # #### """ | | ?#?# | | ???# # # ######### | | ???## ### #### #??##?### | | ???### ##?####?# ??##?# ### | | ?????#####?##?#??# """" ##??## #?## | | #?????##?#???????# """" #????# #?### | | #????????####?#??# """" ####?# ##?### | | #??##??#??##?##??# ###?# ?#?## | | ?#??????##?????#?# #???# ##?#? | | ##????????#??????# #??? ?###? | | #???#?????##??##?##???#####???#####????? | +----------------------------------------------------+ Best States ------------- Heat Dissipation 25 Energy Generation 10 Energy Capacity 250 Matter Stores 300 Matter Capacity 300 Sight Range 16 Terrain Scan Range 16 Terrain Scan Density 85 Evasion (%) 47 Item Schematics ----------------- None Robot Schematics ------------------ None Fabricated ------------ Nothing Alien Tech Used ----------------- None Achievements -------------- None Challenges ------------ None Game ------ Seed GrenadeNuclearCannon Manual? 0 Play Time 00:18:36 Cumulative 197.3 hours Start 2020.09.19 @ 15:50:22 End 2020.09.19 @ 19:50:28 Sessions 3 Manual Loads 0 Difficulty Rogue Special Mode None Game No. 141 Rogue 141 Adventurer 0 Explorer 0 Win Type - Total 1 Types 1/0/0/0/0/0/0/0/0 Lore% 50 Gallery% 67 Achievement% 48 Wizard Run 0 Options --------- ASCII 0 Keyboard 0 Movement Numpad Keybinds 0 Fullscreen 1 Font 18/SmallcapsGlow Map View 76x50 Tactical HUD 1 Map Filters NONE Filters NONE Steam 1 RUN: bda212c5-0857-4526-bff4-643d8a9aaaf9